bitfinex/quotes_SOLUSD_20220302
["timestamp","ask_amount","ask_price","bid_price","bid_amount"]
[1646201699576,66.92514017,103.25,103.15,26.0791]
[1646201702178,163.30514017,103.25,103.15,26.0791]
[1646201702380,166.78724837,103.25,103.14,3.875]
[1646201702579,96.38,103.23,103.12,3.876]
[1646201702779,14.5456,103.21,103.12,3.876]
[1646201702982,53.90611193,103.2,103.12,3.876]
[1646201703386,53.90611193,103.2,103.12,29.9603]
[1646201703985,47.4964,103.22,103.12,29.9603]
[1646201705787,8.876,103.26,103.12,34.59848134]
[1646201705991,24.091,103.25,103.16,14.5364]
[1646201706187,24.091,103.25,103.16,26.0764]
[1646201707394,24.091,103.25,103.16,124.80051553]
[1646201707590,23.8187,103.26,103.16,128.67551553]
[1646201707790,23.8187,103.26,103.16,136.22455556]
[1646201707997,23.8187,103.26,103.16,161.13375556]
[1646201708392,143.56681518,103.3,103.16,157.25875556]
[1646201708595,23.4444,103.29,103.18,98.78642932]
[1646201708793,23.4444,103.29,103.21,14.5289]
[1646201708994,3.874,103.31,103.22,107.92]
[1646201709193,47.0908,103.32,103.22,11.54]
[1646201709394,23.9067,103.32,103.22,11.54]
[1646201710594,23.9067,103.32,103.22,107.92]
[1646201710794,23.9067,103.32,103.22,11.54]
[1646201710994,23.9067,103.32,103.25,14.5251]
[1646201711199,22.777,103.33,103.26,11.54]
[1646201712398,7.777,103.33,103.26,11.54]
[1646201712997,7.777,103.33,103.27,14.5235]
[1646201713223,60.46588669,103.34,103.27,14.5235]
[1646201713622,60.46588669,103.34,103.27,26.0635]
[1646201715224,46.5077,103.35,103.27,26.0635]
[1646201720832,23.602,103.35,103.27,26.0635]
[1646201721233,24.3751,103.37,103.27,26.0635]
[1646201721435,24.3751,103.37,103.27,50.892]
[1646201721834,83.13157604,103.37,103.27,55.892]
[1646201722437,83.13157604,103.37,103.27,50.892]
[1646201723236,83.13157604,103.37,103.27,55.892]
[1646201723836,179.51157604,103.37,103.27,55.892]
[1646201724235,204.056236,103.37,103.27,50.892]
[1646201724439,204.056236,103.37,103.27,36.3685]
[1646201724639,3.871,103.36,103.27,24.8285]
[1646201724836,96.38,103.34,103.27,24.8285]
[1646201725138,96.38,103.34,103.26,3.871]
[1646201725139,155.42734616,103.33,103.23,22.6389]
[1646201725438,155.42734616,103.33,103.23,34.1789]
[1646201725640,177.75803035,103.33,103.23,34.1789]
[1646201726138,192.28683035,103.33,103.24,14.527]
[1646201726338,169.95614616,103.33,103.24,14.527]
[1646201726541,169.95614616,103.33,103.24,26.067]
[1646201727139,110.9088,103.33,103.24,26.067]
[1646201727540,2.21397577,103.34,103.24,26.067]
[1646201727739,14.5261,103.35,103.24,122.447]
[1646201727939,30.46107577,103.37,103.24,122.447]
[1646201728140,30.46107577,103.37,103.25,49.5742]
[1646201728342,30.46107577,103.37,103.28,14.5217]
[1646201728543,126.84107577,103.37,103.28,26.0617]
[1646201730044,141.36427577,103.37,103.28,26.0617]
[1646201730245,137.49227577,103.37,103.28,26.0617]
[1646201730442,159.82295996,103.37,103.28,26.0617]
[1646201730643,217.73295996,103.37,103.26,14.5242]
[1646201730842,221.60395996,103.37,103.26,14.5242]
[1646201731443,246.36455996,103.37,103.26,14.5242]
[1646201733144,188.45455996,103.37,103.26,14.5242]
[1646201733346,188.45455996,103.37,103.26,26.0642]
[1646201736146,184.58355996,103.37,103.26,26.0642]
[1646201736749,184.58355996,103.37,103.27,23.3072]
[1646201736947,184.58355996,103.37,103.27,37.8304]
[1646201739351,188.45455996,103.37,103.27,37.8304]
[1646201741148,188.45455996,103.37,103.27,49.3704]
[1646201745052,246.36455996,103.37,103.26,14.5253]
[1646201745351,154.29,103.35,103.25,24.8611]
[1646201745550,96.38,103.31,103.25,24.8611]
[1646201745753,49.61296548,103.3,103.23,23.5095]
[1646201746353,14.5292,103.32,103.23,23.5095]
[1646201746550,110.9092,103.32,103.23,23.5095]
[1646201747155,110.9092,103.32,103.24,14.5273]
[1646201747354,52.39925618,103.31,103.24,14.5273]
[1646201747952,14.5292,103.32,103.24,14.5273]
[1646201748152,49.4853,103.33,103.24,14.5273]
[1646201748952,51.79927479,103.32,103.24,14.5273]
[1646201751257,67.8849,103.33,103.24,14.5273]
[1646201751658,67.8849,103.33,103.24,26.0673]
[1646201752267,122.51261572,103.33,103.24,26.0673]
[1646201752471,118.64061572,103.33,103.24,26.0673]
[1646201752872,118.64061572,103.33,103.24,40.2314]
[1646201754893,215.02061572,103.33,103.24,26.0673]
[1646201755293,140.97095325,103.33,103.24,26.0673]
[1646201755496,118.64061572,103.33,103.24,26.0673]
[1646201755698,49.4853,103.33,103.24,26.0673]
[1646201756104,3.872,103.35,103.24,124.75907538]
[1646201756296,23.1064,103.36,103.28,14.5209]
[1646201756795,43.97463579,103.35,103.28,14.5209]
[1646201756997,43.97463579,103.35,103.28,26.0609]
[1646201761900,140.35463579,103.35,103.28,26.0609]
[1646201762103,140.35463579,103.35,103.28,11.54]
[1646201762303,140.35463579,103.35,103.27,24.6894]
[1646201763103,58.49963579,103.35,103.27,24.6894]
[1646201763303,58.49963579,103.35,103.27,39.213]
[1646201763505,140.35463579,103.35,103.27,50.753]
[1646201765008,154.87933579,103.35,103.27,50.753]
[1646201767916,31.9774,103.36,103.27,147.133]
[1646201767917,26.9774,103.36,103.27,147.133]
[1646201768115,2.21397577,103.39,103.27,147.133]
[1646201768314,22.604,103.39,103.28,16.56602023]
[1646201768511,22.604,103.39,103.3,14.5197]
[1646201768713,22.604,103.39,103.3,49.0583]
[1646201768912,60.35161397,103.38,103.3,49.0583]
[1646201769519,156.73161397,103.38,103.3,49.0583]
[1646201770320,60.35161397,103.38,103.3,49.0583]
[1646201770517,156.73161397,103.38,103.3,49.0583]
[1646201770920,60.35161397,103.38,103.3,49.0583]
[1646201776643,156.73161397,103.38,103.3,49.0583]
[1646201776844,60.35161397,103.38,103.3,49.0583]
[1646201777544,156.73161397,103.38,103.3,49.0583]
[1646201777746,60.35161397,103.38,103.3,49.0583]
[1646201778147,156.73161397,103.38,103.3,49.0583]
[1646201778345,171.25281397,103.38,103.28,39.3404]
[1646201778647,96.38,103.36,103.28,39.3404]
[1646201778848,96.38,103.36,103.28,24.8189]
[1646201780048,110.9038,103.36,103.28,24.8189]
[1646201780646,110.9038,103.36,103.26,38.1754]
[1646201780845,151.39766448,103.34,103.26,38.1754]
[1646201781249,165.92436448,103.34,103.26,23.651]
[1646201781447,226.04834025,103.34,103.24,34.6271]
[1646201781646,96.38,103.32,103.21,5.0]
[1646201781848,0.368898,103.31,103.21,28.8997]
[1646201782048,145.87971359,103.3,103.21,28.8997]
[1646201782249,169.70311359,103.3,103.21,28.8997]
[1646201782954,14.5331,103.29,103.21,38.4319]
[1646201784153,73.32311359,103.3,103.21,49.9719]
[1646201784556,23.8234,103.3,103.21,49.9719]
[1646201785254,8.962,103.32,103.21,148.25399984]
[1646201785455,8.962,103.32,103.21,150.80303987]
[1646201785456,68.90422713,103.32,103.21,150.80303987]
[1646201785654,68.90422713,103.32,103.21,163.08992398]
[1646201785855,68.90422713,103.32,103.21,177.83342398]
[1646201786053,165.28422713,103.32,103.21,79.55132414]
[1646201786757,165.28422713,103.32,103.21,77.00228411]
[1646201786959,68.90422713,103.32,103.21,77.00228411]
[1646201787361,165.28422713,103.32,103.21,77.00228411]
[1646201787656,68.90422713,103.32,103.21,64.7154]
[1646201788557,72.77722713,103.32,103.21,64.7154]
[1646201788960,12.835,103.32,103.21,67.08523059]
[1646201789557,12.835,103.32,103.21,163.46523059]
[1646201789761,8.962,103.32,103.22,2.54904003]
[1646201789959,8.962,103.32,103.25,14.5225]
[1646201790159,8.962,103.32,103.26,11.54]
[1646201792061,8.962,103.32,103.27,14.5235]
[1646201792262,8.962,103.32,103.27,26.0635]
[1646201793770,60.163646,103.36,103.27,26.0635]
[1646201793964,23.5079,103.36,103.27,26.0635]
[1646201794562,3.872,103.37,103.27,26.0635]
[1646201794963,171.79875406,103.38,103.27,26.0635]
[1646201795163,18.3924,103.38,103.28,23.7902]
[1646201795366,26.003246,103.39,103.3,14.519]
[1646201795662,26.003246,103.39,103.3,49.8492]
[1646201795870,122.383246,103.39,103.3,49.8492]
[1646201796364,146.93889496,103.38,103.3,49.8492]
[1646201796563,146.93889496,103.38,103.3,35.3302]
[1646201796762,149.14735204,103.38,103.3,35.3302]
[1646201797165,153.01735204,103.38,103.3,35.3302]
[1646201797363,171.27959804,103.38,103.3,35.3302]
[1646201798069,185.80079804,103.38,103.3,35.3302]
[1646201801568,89.42079804,103.38,103.3,35.3302]
[1646201801769,185.80079804,103.38,103.3,35.3302]
[1646201802268,89.42079804,103.38,103.3,35.3302]
[1646201802870,185.80079804,103.38,103.3,33.8302]
[1646201805675,89.42079804,103.38,103.3,33.8302]
[1646201806282,89.42079804,103.38,103.3,48.3497]
[1646201806480,16.72965708,103.38,103.3,48.3497]
[1646201806680,22.9289,103.39,103.3,48.3497]
[1646201806881,3.87,103.41,103.3,144.7297]
[1646201807101,24.5111,103.42,103.3,144.21350508]
[1646201807298,24.5111,103.42,103.34,14.5138]
[1646201807499,24.5111,103.42,103.34,26.0538]
[1646201814211,29.1405,103.43,103.34,26.0538]
[1646201814811,51.7432,103.43,103.34,26.0538]
[1646201815009,37.2297,103.43,103.34,26.0538]
[1646201815712,22.6027,103.43,103.34,26.0538]
[1646201815910,96.38,103.42,103.34,26.0538]
[1646201817314,3.869,103.42,103.34,26.0538]
[1646201817512,147.19240308,103.43,103.34,26.0538]
[1646201817913,161.76790308,103.43,103.34,26.0538]
[1646201818114,110.8951,103.42,103.34,26.0538]
[1646201818513,113.10355708,103.42,103.34,26.0538]
[1646201818913,110.8951,103.42,103.34,26.0538]
[1646201819117,14.5151,103.42,103.34,26.0538]
[1646201819317,26.4717,103.43,103.34,26.0538]
[1646201819514,22.6027,103.43,103.34,26.0538]
[1646201819714,22.6027,103.43,103.34,122.4338]
[1646201819916,70.54630908,103.44,103.34,124.98284003]
[1646201821218,23.9712,103.44,103.34,124.98284003]
[1646201822018,23.9712,103.44,103.35,120.5337]
[1646201822217,23.9712,103.44,103.37,14.509]
[1646201822419,23.9712,103.44,103.38,11.54]
[1646201824019,90.37056761,103.46,103.38,26.0475]
[1646201824218,90.37056761,103.46,103.38,122.4275]
[1646201824421,24.9386,103.46,103.38,26.0475]
[1646201824819,24.9386,103.46,103.38,50.8485]
[1646201825319,73.20778451,103.46,103.38,50.8485]
[1646201825922,73.20778451,103.46,103.38,147.2285]
[1646201826119,24.9386,103.46,103.38,147.2285]
[1646201826723,24.9386,103.46,103.38,50.8485]
[1646201827220,69.85514931,103.46,103.38,50.8485]
[1646201829222,69.85514931,103.46,103.38,147.2285]
[1646201832825,29.7886,103.49,103.38,147.2285]
[1646201833122,52.5722,103.49,103.38,149.77754003]
[1646201833723,51.03281981,103.48,103.38,149.77754003]
[1646201835925,23.1891,103.47,103.38,149.77754003]
[1646201837227,51.03281981,103.48,103.38,149.77754003]
[1646201837426,51.03281981,103.48,103.39,3.867]
[1646201837626,51.03281981,103.48,103.41,14.5011]
[1646201837825,51.03281981,103.48,103.42,11.54]
[1646201841932,51.03281981,103.48,103.42,26.0427]
[1646201842131,47.5046,103.49,103.42,122.4227]
[1646201843138,105.1676462,103.49,103.42,122.4227]
[1646201843334,20.9878,103.53,103.42,122.4227]
[1646201843532,24.4266,103.52,103.43,119.2868]
[1646201843732,24.4266,103.52,103.44,26.0389]
[1646201844132,24.4266,103.52,103.44,122.4189]
[1646201844533,83.96649271,103.52,103.44,124.96794003]
[1646201845134,83.96649271,103.52,103.44,28.58794003]
[1646201846540,83.96649271,103.52,103.44,26.0389]
[1646201848038,180.34649271,103.52,103.44,26.0389]
[1646201848262,202.47873871,103.52,103.44,26.0389]
[1646201848439,226.63179896,103.52,103.44,11.54]
[1646201848839,226.63179896,103.52,103.43,22.9068]
[1646201849046,235.49679896,103.52,103.42,14.5018]
[1646201849240,230.49679896,103.52,103.42,26.0418]
[1646201849547,96.38,103.5,103.42,26.0418]
[1646201850341,121.3535,103.5,103.42,26.0418]
[1646201853550,24.9735,103.5,103.42,26.0418]
[1646201855769,121.3535,103.5,103.42,26.0418]
[1646201856073,24.9735,103.5,103.42,26.0418]
[1646201856471,121.3535,103.5,103.42,26.0418]
[1646201859174,24.9735,103.5,103.42,26.0418]
[1646201860376,121.3535,103.5,103.42,26.0418]
[1646201861877,24.9735,103.5,103.42,26.0418]
[1646201862378,135.8577,103.5,103.4,38.9458]
[1646201862577,182.14300625,103.5,103.4,24.4412]
[1646201862778,0.24903814,103.49,103.4,24.4412]
[1646201862975,96.38,103.47,103.38,16.54]
[1646201863177,179.24018221,103.48,103.38,5.0]
[1646201863379,179.24018221,103.48,103.37,74.5738]
[1646201863584,82.86018221,103.48,103.37,74.5738]
[1646201863783,23.213,103.47,103.37,98.8426]
[1646201863980,23.213,103.47,103.38,18.3743]
[1646201864181,23.213,103.47,103.38,29.9143]
[1646201866786,134.1013,103.47,103.38,15.407]
[1646201866985,186.38716625,103.47,103.37,24.2688]
[1646201867787,191.38716625,103.47,103.37,24.2688]
[1646201868892,206.06216625,103.47,103.37,24.2688]
[1646201869088,0.22359888,103.46,103.37,24.2688]
[1646201869290,14.5109,103.45,103.36,26.0504]
[1646201869488,54.71460756,103.43,103.36,49.5783]
[1646201869889,22.8771,103.44,103.36,49.5783]
[1646201870089,22.8771,103.44,103.36,53.4463]
[1646201870390,38.2865,103.49,103.36,154.78660195]
[1646201870590,61.2823,103.49,103.37,3.867]
[1646201870791,48.16197457,103.48,103.4,14.5038]
[1646201871189,48.16197457,103.48,103.4,26.0438]
[1646201877595,144.54197457,103.48,103.4,26.0438]
[1646201877795,159.04887457,103.48,103.39,23.8951]
[1646201878197,119.4381,103.47,103.39,23.8951]
[1646201878997,119.4381,103.47,103.39,38.4021]
[1646201880598,23.0581,103.47,103.39,38.4021]
[1646201880800,23.0581,103.47,103.39,49.9421]
[1646201885706,23.0581,103.47,103.39,146.3221]
[1646201887406,23.7803,103.49,103.39,148.54085317]
[1646201887907,23.7803,103.49,103.39,153.54085317]
[1646201888506,23.7803,103.49,103.39,148.54085317]
[1646201888706,23.7803,103.49,103.39,153.54085317]
[1646201891211,23.7803,103.49,103.39,148.54085317]
[1646201891410,23.7803,103.49,103.39,297.74085317]
[1646201891914,23.7803,103.49,103.39,199.1421]
[1646201892210,23.7803,103.49,103.39,194.1421]
[1646201892409,45.912546,103.49,103.39,49.9421]
[1646201892610,69.306146,103.49,103.39,49.9421]
[1646201892910,165.686146,103.49,103.39,49.9421]
[1646201894813,223.596146,103.49,103.39,26.047]
[1646201895015,96.38,103.45,103.37,29.9158]
[1646201895216,96.38,103.45,103.37,15.407]
[1646201895815,119.7512,103.45,103.37,15.407]
[1646201896014,121.97226161,103.45,103.37,15.407]
[1646201897035,136.48316161,103.45,103.37,15.407]
[1646201897833,134.2621,103.45,103.37,15.407]
[1646201898032,37.8821,103.45,103.37,29.9163]
[1646201898636,134.2621,103.45,103.37,29.9163]
[1646201898834,136.48316161,103.45,103.37,29.9163]
[1646201899236,136.48316161,103.45,103.37,26.0493]
[1646201899237,37.8821,103.45,103.37,26.0493]
[1646201899935,134.2621,103.45,103.37,26.0493]
[1646201900136,37.8821,103.45,103.37,26.0493]
[1646201901238,134.2621,103.45,103.37,26.0493]
[1646201901439,37.8821,103.45,103.37,26.0493]
[1646201904942,96.38,103.44,103.37,26.0493]
[1646201905139,134.2621,103.45,103.37,26.0493]
[1646201905741,37.8821,103.45,103.37,26.0493]
[1646201906141,23.3712,103.45,103.37,26.0493]
[1646201909046,22.132246,103.48,103.37,40.8113]
[1646201909247,22.505,103.47,103.4,14.504]
[1646201909446,22.505,103.47,103.4,26.044]
[1646201910247,73.10437743,103.47,103.4,26.044]
[1646201911249,22.505,103.47,103.4,26.044]
[1646201912249,69.43153974,103.47,103.4,26.044]
[1646201915760,22.505,103.47,103.4,26.044]
[1646201915955,22.505,103.47,103.4,40.3152]
[1646201920062,23.7803,103.49,103.4,40.3152]
[1646201920265,47.6569,103.49,103.41,22.8878]
[1646201920463,47.6569,103.49,103.42,26.0424]
[1646201921064,108.31776481,103.49,103.42,26.0424]
[1646201921464,110.53882642,103.49,103.42,26.0424]
[1646201925192,108.31776481,103.49,103.42,26.0424]
[1646201928193,226.83001081,103.49,103.42,26.0424]
[1646201928393,130.45001081,103.49,103.42,26.0424]
[1646201928595,226.83001081,103.49,103.42,26.0424]
[1646201929195,130.45001081,103.49,103.42,26.0424]
[1646201929796,130.45001081,103.49,103.39,72.7488]
[1646201929797,241.33521081,103.49,103.4,14.5044]
[1646201929998,264.11337398,103.49,103.4,26.0444]
[1646201930599,264.11337398,103.49,103.4,50.9343]
[1646201930801,167.73337398,103.49,103.4,50.9343]
[1646201930998,108.31776481,103.49,103.4,50.9343]
[1646201931698,108.31776481,103.49,103.4,54.8003]
[1646201934202,108.31776481,103.49,103.4,69.6472]
[1646201935302,130.45001081,103.49,103.4,69.6472]
[1646201936403,130.45001081,103.49,103.4,166.0272]
[1646201936605,47.6569,103.49,103.4,166.0272]
[1646201936804,47.6569,103.49,103.4,171.0272]
[1646201937303,47.6569,103.49,103.4,315.2272]
[1646201937504,94.90727001,103.49,103.4,315.2272]
[1646201937907,94.90727001,103.49,103.4,310.2272]
[1646201938206,94.90727001,103.49,103.41,96.38]
[1646201938407,47.6569,103.49,103.43,14.5002]
[1646201938703,47.6569,103.49,103.44,11.54]
[1646201943109,50.75336317,103.52,103.44,26.0393]
[1646201943313,43.120046,103.53,103.44,48.5899]
[1646201943509,20.9878,103.53,103.44,144.9699]
[1646201944009,24.5417,103.52,103.44,144.9699]
[1646201944211,20.9878,103.53,103.44,151.38394003]
[1646201944410,20.9878,103.53,103.44,295.58394003]
[1646201944610,20.9878,103.53,103.44,311.88760754]
[1646201944811,20.9878,103.53,103.44,314.22453126]
[1646201945011,20.9878,103.53,103.46,96.38]
[1646201945212,20.9878,103.53,103.48,96.38]
[1646201945512,20.9878,103.53,103.49,107.92]
[1646201946312,20.9878,103.53,103.49,11.54]
[1646201947113,20.9878,103.53,103.5,14.4888]
[1646201947314,20.9878,103.53,103.51,11.59212592]
[1646201949015,20.9878,103.53,103.51,26.08212592]
[1646201949223,78.82967955,103.53,103.51,11.59212592]
[1646201949417,78.82967955,103.53,103.51,11.54]
[1646201949619,78.82967955,103.53,103.49,11.54]
[1646201949819,78.82967955,103.53,103.48,11.54]
[1646201950016,78.82967955,103.53,103.49,11.54]
[1646201950618,20.9878,103.53,103.49,11.54]
[1646201951118,20.9878,103.53,103.49,26.0322]
[1646201952321,20.0,103.53,103.49,26.0322]
[1646201952724,20.0,103.53,103.49,122.4122]
[1646201952923,20.0,103.53,103.49,133.48524003]
[1646201953123,19.97135777,103.53,103.49,133.48524003]
[1646201954323,19.97135777,103.53,103.51,96.38]
[1646201954523,19.97135777,103.53,103.52,26.0257]
[1646201954727,5.777e-05,103.53,103.52,26.0257]
[1646201955527,5.777e-05,103.53,103.52,48.7731]
[1646201963643,5.777e-05,103.53,103.52,26.0257]
[1646201963847,5.777e-05,103.53,103.52,0.22330561]
[1646201964046,5.777e-05,103.53,103.5,14.4906]
[1646201964244,5.777e-05,103.53,103.49,8.524]
[1646201965250,5.777e-05,103.53,103.49,34.5565]
[1646201965449,5.777e-05,103.53,103.5,22.989]
[1646201965749,5.777e-05,103.53,103.51,12.7537199]
[1646201966354,5.777e-05,103.53,103.51,27.2413199]
[1646201966551,5.777e-05,103.53,103.51,32.2413199]
[1646201966750,5.777e-05,103.53,103.51,27.2413199]
[1646201966950,5.777e-05,103.53,103.51,32.2413199]
[1646201971755,5.777e-05,103.53,103.51,128.6213199]
[1646201972555,5.777e-05,103.53,103.51,32.2413199]
[1646201972758,5.777e-05,103.53,103.51,27.2413199]
[1646201973158,5.777e-05,103.53,103.51,15.7013199]
[1646201973559,5.777e-05,103.53,103.49,19.4919]
[1646201973758,5.777e-05,103.53,103.49,5.0]
[1646201974163,52.30765757,103.53,103.49,5.0]
[1646201974361,52.30765757,103.53,103.46,11.54]
[1646201975059,52.30765757,103.53,103.48,14.494]
[1646201975961,148.68765757,103.53,103.45,11.54]
[1646201976161,152.08755652,103.53,103.44,14.4992]
[1646201976362,155.95255652,103.53,103.42,23.1729]
[1646201976563,96.38,103.51,103.42,23.1729]
[1646201976764,100.246,103.51,103.42,23.1729]
[1646201977166,3.866,103.51,103.42,37.6748]
[1646201979970,121.1492,103.52,103.42,37.6748]
[1646201981471,121.1492,103.52,103.42,49.2148]
[1646201982876,28.6342,103.52,103.42,145.5948]
[1646201983076,24.7692,103.52,103.43,3.865]
[1646201983293,24.7692,103.52,103.45,14.4962]
[1646201983695,24.7692,103.52,103.45,26.0362]
[1646201985899,24.7692,103.52,103.45,29.9012]
[1646201988903,24.7692,103.52,103.45,26.0362]
[1646201998310,24.7692,103.52,103.45,49.3456]
[1646202003016,24.7692,103.52,103.45,145.7256]
[1646202003416,5.777e-05,103.53,103.45,145.7256]
[1646202003817,5.777e-05,103.53,103.47,5.0]
[1646202004019,5.777e-05,103.53,103.48,26.0303]
[1646202004317,5.777e-05,103.53,103.48,122.4103]
[1646202004517,5.777e-05,103.53,103.48,148.50304003]
[1646202005520,5.777e-05,103.53,103.48,145.954]
[1646202005918,5.777e-05,103.53,103.49,5.0]
[1646202006218,5.777e-05,103.53,103.5,26.0286]
[1646202006419,5.777e-05,103.53,103.51,23.611]
[1646202006622,5.777e-05,103.53,103.51,35.151]
[1646202007022,5.777e-05,103.53,103.52,3.03219997]
[1646202008024,5.777e-05,103.53,103.52,17.52079997]
[1646202010551,5.777e-05,103.53,103.52,29.06079997]
[1646202012653,27.1512,103.65,103.54,96.38]
[1646202012855,22.7652,103.64,103.56,110.8596]
[1646202013151,6.3669975,103.66,103.57,107.92]
[1646202013350,6.3669975,103.66,103.58,11.54]
[1646202013551,47.37564146,103.65,103.58,11.54]
[1646202013751,47.37564146,103.65,103.58,32.04306003]
[1646202014352,6.3669975,103.66,103.58,133.42306003]
[1646202014951,6.3669975,103.66,103.58,37.04306003]
[1646202015152,6.3669975,103.66,103.59,14.4758]
[1646202015355,56.43753681,103.65,103.6,11.54]
[1646202016554,6.3669975,103.66,103.6,11.54]
[1646202017054,6.3669975,103.66,103.6,26.0166]
[1646202017454,64.87140339,103.66,103.6,26.0166]
[1646202033975,60.44329089,103.66,103.6,26.0166]
[1646202034874,156.82329089,103.66,103.58,37.96]
[1646202035074,159.05295829,103.66,103.57,24.5992]
[1646202035473,156.82329089,103.66,103.57,24.5992]
[1646202035675,22.601,103.65,103.57,24.5992]
[1646202036077,22.601,103.65,103.57,39.0809]
[1646202038675,22.601,103.65,103.57,50.6209]
[1646202040977,96.38,103.64,103.57,14.4817]
[1646202043277,96.38,103.64,103.55,14.4838]
[1646202043478,29.96145321,103.65,103.55,14.4838]
[1646202043479,96.38,103.62,103.55,14.4838]
[1646202043680,55.9787599,103.61,103.55,14.4838]
[1646202047787,152.3587599,103.61,103.52,23.2352]
[1646202047991,96.38,103.59,103.51,29.1312]
[1646202048185,0.3062697,103.58,103.51,24.1312]
[1646202048392,96.38,103.59,103.51,24.1312]
[1646202048587,27.7018,103.6,103.51,24.1312]
[1646202048884,96.38,103.59,103.51,24.1312]
[1646202049084,96.38,103.59,103.51,38.6203]
[1646202051791,107.5356674,103.59,103.49,14.4921]
[1646202052094,155.28092394,103.56,103.49,14.4921]
[1646202054097,155.28092394,103.56,103.45,2.54904003]
[1646202054302,96.38,103.54,103.45,2.54904003]
[1646202054495,27.45226482,103.55,103.44,26.6709]
[1646202054496,96.38,103.52,103.44,26.6709]
[1646202054701,60.64414202,103.51,103.44,26.6709]
[1646202054896,157.02414202,103.51,103.44,26.6709]
[1646202055098,157.02414202,103.51,103.44,41.1708]
[1646202055296,60.64414202,103.51,103.44,41.1708]
[1646202056303,157.02414202,103.51,103.44,41.1708]
[1646202056598,60.64414202,103.51,103.44,41.1708]
[1646202057203,157.02414202,103.51,103.44,18.3649]
[1646202058003,214.93414202,103.51,103.44,18.3649]
[1646202058202,217.17019531,103.51,103.44,3.865]
[1646202058920,217.17019531,103.51,103.38,111.6822]
[1646202059119,154.29,103.49,103.38,77.8446]
[1646202059322,0.3200155,103.48,103.38,31.0474]
[1646202059519,96.38,103.46,103.38,19.5074]
[1646202059922,148.1050344,103.47,103.38,14.5074]
[1646202063330,51.7250344,103.47,103.38,14.5074]
[1646202063527,148.1050344,103.47,103.38,14.5074]
[1646202063928,51.7250344,103.47,103.38,14.5074]
[1646202064130,51.7250344,103.47,103.38,26.0474]
[1646202064930,3.867,103.49,103.38,30.53858933]
[1646202065231,48.6774,103.5,103.39,22.04269474]
[1646202065431,48.6774,103.5,103.42,14.5]
[1646202065630,145.0574,103.5,103.42,26.04]
[1646202065833,50.0713433,103.49,103.42,26.04]
[1646202066034,50.0713433,103.49,103.42,14.5]
[1646202066440,146.4513433,103.49,103.42,14.5]
[1646202066636,150.3173433,103.49,103.4,38.2052]
[1646202067644,146.4513433,103.49,103.4,38.2052]
[1646202068237,150.3173433,103.49,103.4,38.2052]
[1646202069639,150.3173433,103.49,103.4,49.7452]
[1646202069640,146.4513433,103.49,103.4,49.7452]
[1646202071643,146.4513433,103.49,103.4,64.1571]
[1646202072947,52.5434,103.5,103.4,160.5371]
[1646202073147,48.6774,103.5,103.4,66.70614003]
[1646202073949,105.02068308,103.5,103.4,71.70614003]
[1646202074549,4.4281125,103.46,103.4,71.70614003]
[1646202074952,4.4281125,103.46,103.4,66.70614003]
[1646202075351,63.08037163,103.46,103.4,54.7452]
[1646202075555,63.08037163,103.46,103.4,49.7452]
[1646202076354,58.65225913,103.46,103.4,38.2052]
[1646202077554,155.03225913,103.46,103.4,14.5045]
[1646202078758,155.03225913,103.46,103.38,74.5429]
[1646202078957,155.03225913,103.46,103.38,63.0029]
[1646202080362,58.65225913,103.46,103.38,63.0029]
[1646202080557,58.65225913,103.46,103.38,74.5429]
[1646202080958,155.03225913,103.46,103.38,74.5429]
[1646202081160,58.65225913,103.46,103.38,74.5429]
[1646202081959,18.5246,103.49,103.38,74.5429]
[1646202082361,3.867,103.49,103.38,74.5429]
[1646202082968,55.56907858,103.48,103.38,74.5429]